[Event "Live Chess"]
[Site "Chess.com"]
[Date "2024.06.01"]
[Round "-"]
[White "Trecregin"]
[Black "IanCalvert2"]
[Result "1-0"]
[WhiteElo "1851"]
[BlackElo "1527"]
[TimeControl "300"]
[EndTime "10:05:00 PDT"]
[Termination "Trecregin won on time"]

1. e4 {[%clk 0:04:59.6]} 1... d5 {[%clk 0:04:56.5]} 2. d4 {[%clk 0:04:58.5]}
2... dxe4 {[%clk 0:04:53.8]} 3. Nc3 {[%clk 0:04:57.7]} 3... Nf6 {[%clk
0:04:51.2]} 4. f3 {[%clk 0:04:56.8]} 4... exf3 {[%clk 0:04:48.8]} 5. Nxf3 {[%clk
0:04:56.1]} 5... c6 {[%clk 0:04:46.5]} 6. Bc4 {[%clk 0:04:55.3]} 6... Bf5 {[%clk
0:04:45.2]} 7. O-O {[%clk 0:04:53.7]} 7... e6 {[%clk 0:04:42.1]} 8. Ne5 {[%clk
0:04:51.6]} 8... Bg6 {[%clk 0:04:40.5]} 9. Bg5 {[%clk 0:04:49.9]} 9... Nbd7
{[%clk 0:04:34.3]} 10. Qe2 {[%clk 0:04:47.4]} 10... Bd6 {[%clk 0:04:18.1]} 11.
Rad1 {[%clk 0:04:39.5]} 11... Qc7 {[%clk 0:04:10.1]} 12. Bf4 {[%clk 0:04:26.8]}
12... O-O-O {[%clk 0:03:54.5]} 13. Nxg6 {[%clk 0:04:23.5]} 13... hxg6 {[%clk
0:03:47]} 14. Bxd6 {[%clk 0:04:22.1]} 14... Qxd6 {[%clk 0:03:44.7]} 15. h3
{[%clk 0:04:21.2]} 15... Nb6 {[%clk 0:03:40.8]} 16. Bb3 {[%clk 0:04:12.3]} 16...
Nbd5 {[%clk 0:03:38.8]} 17. Ne4 {[%clk 0:04:09.7]} 17... Nxe4 {[%clk 0:03:34]}
18. Qxe4 {[%clk 0:04:08.4]} 18... f5 {[%clk 0:03:06.8]} 19. Qe2 {[%clk
0:03:47.7]} 19... g5 {[%clk 0:02:59.7]} 20. Bxd5 {[%clk 0:03:40]} 20... Qxd5
{[%clk 0:02:34]} 21. Rfe1 {[%clk 0:03:33.6]} 21... Rh6 {[%clk 0:02:00.6]} 22. b3
{[%clk 0:03:28.6]} 22... g4 {[%clk 0:01:50]} 23. c4 {[%clk 0:03:26.6]} 23... Qd6
{[%clk 0:01:47.5]} 24. Qe5 {[%clk 0:03:08.4]} 24... Qxe5 {[%clk 0:01:42]} 25.
Rxe5 {[%clk 0:03:06.1]} 25... gxh3 {[%clk 0:01:38.1]} 26. gxh3 {[%clk
0:03:04.9]} 26... Rxh3 {[%clk 0:01:36.2]} 27. Rxe6 {[%clk 0:03:03]} 27... g5
{[%clk 0:01:32.3]} 28. d5 {[%clk 0:02:55.8]} 28... Rdh8 {[%clk 0:01:19.5]} 29.
Rde1 {[%clk 0:02:42.7]} 29... Rh1+ {[%clk 0:01:14.8]} 30. Kg2 {[%clk 0:02:41.8]}
30... R8h2+ {[%clk 0:01:10.3]} 31. Kg3 {[%clk 0:02:40.9]} 31... Rxe1 {[%clk
0:01:08.4]} 32. Rxe1 {[%clk 0:02:34.1]} 32... Rxa2 {[%clk 0:01:06]} 33. Re5
{[%clk 0:02:22.4]} 33... cxd5 {[%clk 0:00:56.8]} 34. Rxd5 {[%clk 0:02:16.9]}
34... Ra3 {[%clk 0:00:53.6]} 35. Rxf5 {[%clk 0:02:13]} 35... Rxb3+ {[%clk
0:00:52]} 36. Kg4 {[%clk 0:02:12.5]} 36... b6 {[%clk 0:00:44.3]} 37. Kxg5 {[%clk
0:02:09.2]} 37... Rc3 {[%clk 0:00:40.1]} 38. Rf8+ {[%clk 0:02:07.4]} 38... Kb7
{[%clk 0:00:38.2]} 39. Rf7+ {[%clk 0:02:06.6]} 39... Ka6 {[%clk 0:00:37.1]} 40.
Rc7 {[%clk 0:02:01]} 40... b5 {[%clk 0:00:32.1]} 41. c5 {[%clk 0:01:59.7]} 41...
b4 {[%clk 0:00:31.1]} 42. c6 {[%clk 0:01:55.8]} 42... Kb6 {[%clk 0:00:30.1]} 43.
Rb7+ {[%clk 0:01:54.2]} 43... Kxc6 {[%clk 0:00:28.3]} 44. Rxb4 {[%clk
0:01:53.5]} 44... a5 {[%clk 0:00:24.8]} 45. Rb8 {[%clk 0:01:51.5]} 45... a4
{[%clk 0:00:21.7]} 46. Rc8+ {[%clk 0:01:50.2]} 46... Kb5 {[%clk 0:00:20.2]} 47.
Rxc3 {[%clk 0:01:49.5]} 47... Kb4 {[%clk 0:00:19.4]} 48. Rc8 {[%clk 0:01:47.2]}
48... a3 {[%clk 0:00:18.1]} 49. Rb8+ {[%clk 0:01:46.3]} 49... Kc3 {[%clk
0:00:16.9]} 50. Kf4 {[%clk 0:01:44.8]} 50... a2 {[%clk 0:00:15.2]} 51. Rc8+
{[%clk 0:01:42.9]} 51... Kb2 {[%clk 0:00:13.8]} 52. Rb8+ {[%clk 0:01:41.6]}
52... Kc1 {[%clk 0:00:12.7]} 53. Rc8+ {[%clk 0:01:40]} 53... Kb2 {[%clk
0:00:11.8]} 54. Rb8+ {[%clk 0:01:38.5]} 54... Kc1 {[%clk 0:00:10.9]} 55. Ra8
{[%clk 0:01:37.9]} 55... Kb1 {[%clk 0:00:09.2]} 56. Ke3 {[%clk 0:01:37]} 56...
a1=Q {[%clk 0:00:07]} 57. Rb8+ {[%clk 0:01:36.4]} 57... Qb2 {[%clk 0:00:04.7]}
58. Rd8 {[%clk 0:01:33.6]} 58... Qc3+ {[%clk 0:00:03.6]} 59. Ke4 {[%clk
0:01:32.4]} 59... Qc4+ {[%clk 0:00:02.2]} 60. Ke5 {[%clk 0:01:31.3]} 60... Qc5+
{[%clk 0:00:01.1]} 61. Ke4 {[%clk 0:01:29.3]} 1-0

[Event "Live Chess"]
[Site "Chess.com"]
[Date "2024.06.01"]
[Round "-"]
[White "updatedopenings2024"]
[Black "SavagePawn7"]
[Result "1-0"]
[WhiteElo "1786"]
[BlackElo "685"]
[TimeControl "300"]
[EndTime "10:05:45 PDT"]
[Termination "updatedopenings2024 won by resignation"]

1. g3 {[%clk 0:04:58.7]} 1... d5 {[%clk 0:04:54.1]} 2. Bg2 {[%clk 0:04:58.6]}
2... Nf6 {[%clk 0:04:50.7]} 3. Nf3 {[%clk 0:04:58.5]} 3... Nc6 {[%clk
0:04:46.7]} 4. O-O {[%clk 0:04:58.4]} 4... e5 {[%clk 0:04:42.8]} 5. d4 {[%clk
0:04:58.3]} 5... Bd6 {[%clk 0:04:38]} 6. dxe5 {[%clk 0:04:57.3]} 6... Nxe5
{[%clk 0:04:34.3]} 7. Nxe5 {[%clk 0:04:55.4]} 7... Bxe5 {[%clk 0:04:32.8]} 8. c4
{[%clk 0:04:55.1]} 8... c6 {[%clk 0:04:28.5]} 9. cxd5 {[%clk 0:04:52.7]} 9...
cxd5 {[%clk 0:04:25.4]} 10. Nc3 {[%clk 0:04:51.8]} 10... O-O {[%clk 0:04:21]}
11. Nxd5 {[%clk 0:04:51]} 11... Nxd5 {[%clk 0:04:16.7]} 12. Qxd5 {[%clk
0:04:50.9]} 12... Qxd5 {[%clk 0:04:14.8]} 13. Bxd5 {[%clk 0:04:50.8]} 13... Bf5
{[%clk 0:04:10.4]} 14. e4 {[%clk 0:04:48.4]} 14... Bg6 {[%clk 0:04:07.3]} 15. f4
{[%clk 0:04:47.4]} 15... Bc7 {[%clk 0:04:03.1]} 16. b3 {[%clk 0:04:43.5]} 16...
Rfe8 {[%clk 0:03:53.5]} 17. f5 {[%clk 0:04:39.5]} 17... Bh5 {[%clk 0:03:48.2]}
18. Be3 {[%clk 0:04:38]} 18... Be2 {[%clk 0:03:37.2]} 19. Rfc1 {[%clk
0:04:36.1]} 19... Bb6 {[%clk 0:03:30]} 20. Kf2 {[%clk 0:04:33]} 20... Ba6 {[%clk
0:03:25]} 21. Bxb6 {[%clk 0:04:27.8]} 21... axb6 {[%clk 0:03:21.1]} 22. Rc7
{[%clk 0:04:27.3]} 22... Rf8 {[%clk 0:03:10.8]} 23. a4 {[%clk 0:04:22.7]} 23...
Rac8 {[%clk 0:03:04.5]} 24. Rac1 {[%clk 0:04:20.7]} 24... g6 {[%clk 0:02:51.4]}
25. Bxf7+ {[%clk 0:04:16.4]} 25... Rxf7 {[%clk 0:02:48.5]} 26. Rxc8+ {[%clk
0:04:15.6]} 26... Kg7 {[%clk 0:02:46.6]} 27. R1c7 {[%clk 0:04:15.2]} 27... Rxc7
{[%clk 0:02:42.7]} 28. Rxc7+ {[%clk 0:04:15.1]} 28... Kh6 {[%clk 0:02:40.1]} 29.
Ke3 {[%clk 0:04:13.1]} 29... Bf1 {[%clk 0:02:32.6]} 30. Rxb7 {[%clk 0:04:08.7]}
30... Bg2 {[%clk 0:02:29.2]} 31. Rxb6 {[%clk 0:04:06.7]} 31... Kg5 {[%clk
0:02:23]} 32. a5 {[%clk 0:04:04.2]} 32... Bf1 {[%clk 0:02:16.5]} 33. a6 {[%clk
0:04:02.2]} 1-0

[Event "Live Chess"]
[Site "Chess.com"]
[Date "2024.06.01"]
[Round "-"]
[White "MagnersCarlsberg2870"]
[Black "PureDashingOctopus"]
[Result "0-1"]
[WhiteElo "1890"]
[BlackElo "2209"]
[TimeControl "300"]
[EndTime "10:05:58 PDT"]
[Termination "PureDashingOctopus won by resignation"]

1. Nf3 {[%clk 0:04:57.6]} 1... Nf6 {[%clk 0:04:58.3]} 2. g3 {[%clk 0:04:56.5]}
2... g6 {[%clk 0:04:57.4]} 3. Bg2 {[%clk 0:04:55.8]} 3... Bg7 {[%clk 0:04:57]}
4. d3 {[%clk 0:04:55.1]} 4... O-O {[%clk 0:04:56.5]} 5. e4 {[%clk 0:04:54.4]}
5... d6 {[%clk 0:04:54.5]} 6. Nbd2 {[%clk 0:04:53.3]} 6... c5 {[%clk 0:04:53.8]}
7. O-O {[%clk 0:04:52.2]} 7... Nc6 {[%clk 0:04:53.4]} 8. Re1 {[%clk 0:04:51.3]}
8... d5 {[%clk 0:04:52.9]} 9. e5 {[%clk 0:04:48.3]} 9... Ng4 {[%clk 0:04:49]}
10. h3 {[%clk 0:04:33.4]} 10... Ngxe5 {[%clk 0:04:47.5]} 11. Nxe5 {[%clk
0:04:32.6]} 11... Nxe5 {[%clk 0:04:46.7]} 12. Nf3 {[%clk 0:04:29.5]} 12... Nxf3+
{[%clk 0:04:44.8]} 13. Qxf3 {[%clk 0:04:28.2]} 13... e6 {[%clk 0:04:43.3]} 14.
h4 {[%clk 0:04:25.4]} 14... h5 {[%clk 0:04:40.6]} 15. Bg5 {[%clk 0:04:23.7]}
15... Qb6 {[%clk 0:04:27.4]} 16. Rab1 {[%clk 0:04:18.7]} 16... Bd7 {[%clk
0:04:25.7]} 17. g4 {[%clk 0:04:17]} 17... hxg4 {[%clk 0:04:20.1]} 18. Qxg4
{[%clk 0:04:16.2]} 18... Qb4 {[%clk 0:04:05.3]} 19. f4 {[%clk 0:04:08]} 19...
Qd4+ {[%clk 0:03:57.1]} 20. Kh1 {[%clk 0:03:58.9]} 20... f6 {[%clk 0:03:54.7]}
21. Bh6 {[%clk 0:03:47.2]} 21... Bxh6 {[%clk 0:03:51.7]} 22. Qxg6+ {[%clk
0:03:46.2]} 22... Bg7 {[%clk 0:03:51.3]} 23. Rg1 {[%clk 0:03:27.3]} 23... Qxf4
{[%clk 0:03:46.5]} 24. Bxd5 {[%clk 0:03:24]} 24... Qxh4+ {[%clk 0:03:44.3]} 25.
Kg2 {[%clk 0:03:22.9]} 25... exd5 {[%clk 0:03:39.4]} 26. Kf1 {[%clk 0:03:21.1]}
26... Rf7 {[%clk 0:03:36.8]} 0-1

[Event "Live Chess"]
[Site "Chess.com"]
[Date "2024.06.01"]
[Round "-"]
[White "TC2304"]
[Black "Pedrada88"]
[Result "0-1"]
[WhiteElo "2345"]
[BlackElo "2552"]
[TimeControl "300"]
[EndTime "10:06:00 PDT"]
[Termination "Pedrada88 won on time"]

1. d4 {[%clk 0:04:58.6]} 1... Nf6 {[%clk 0:04:58.9]} 2. Nf3 {[%clk 0:04:58.3]}
2... b6 {[%clk 0:04:58.4]} 3. Bg5 {[%clk 0:04:54.9]} 3... Ba6 {[%clk 0:04:57.3]}
4. Nbd2 {[%clk 0:04:47.4]} 4... d5 {[%clk 0:04:55.7]} 5. Rc1 {[%clk 0:04:38.5]}
5... e6 {[%clk 0:04:53.8]} 6. a3 {[%clk 0:04:35.9]} 6... h6 {[%clk 0:04:50.9]}
7. Bh4 {[%clk 0:04:27]} 7... Be7 {[%clk 0:04:47.9]} 8. c4 {[%clk 0:04:22.8]}
8... dxc4 {[%clk 0:04:47.1]} 9. Nxc4 {[%clk 0:04:22.2]} 9... O-O {[%clk
0:04:46.1]} 10. e3 {[%clk 0:04:19.8]} 10... c5 {[%clk 0:04:44.2]} 11. Be2 {[%clk
0:04:09.7]} 11... Nc6 {[%clk 0:04:40.3]} 12. O-O {[%clk 0:04:03.7]} 12... cxd4
{[%clk 0:04:39.1]} 13. exd4 {[%clk 0:04:00.9]} 13... Bb7 {[%clk 0:04:36]} 14.
Nce5 {[%clk 0:03:56.3]} 14... Rc8 {[%clk 0:04:32.2]} 15. Nxc6 {[%clk 0:03:50.6]}
15... Rxc6 {[%clk 0:04:29.4]} 16. Rxc6 {[%clk 0:03:37.2]} 16... Bxc6 {[%clk
0:04:29.3]} 17. Ne5 {[%clk 0:03:29.3]} 17... Bb7 {[%clk 0:04:21.2]} 18. Qa4
{[%clk 0:03:26.9]} 18... a5 {[%clk 0:04:11.3]} 19. Rc1 {[%clk 0:03:16.6]} 19...
Nd5 {[%clk 0:04:03.6]} 20. Bxe7 {[%clk 0:03:12.9]} 20... Qxe7 {[%clk 0:04:03.5]}
21. Bf3 {[%clk 0:03:06.9]} 21... Qg5 {[%clk 0:03:59.6]} 22. Rd1 {[%clk
0:02:51.7]} 22... Rc8 {[%clk 0:03:53.4]} 23. Qd7 {[%clk 0:02:47.2]} 23... Rc7
{[%clk 0:03:25.4]} 24. Qe8+ {[%clk 0:02:41.2]} 24... Kh7 {[%clk 0:03:24.3]} 25.
Qb5 {[%clk 0:02:40.9]} 25... f5 {[%clk 0:03:13.1]} 26. g3 {[%clk 0:02:32.5]}
26... Ne3 {[%clk 0:03:03.7]} 27. Re1 {[%clk 0:02:15.1]} 27... Nc2 {[%clk
0:02:58.5]} 28. Bxb7 {[%clk 0:01:42.8]} 28... Nxe1 {[%clk 0:02:54.4]} 29. f4
{[%clk 0:01:38.2]} 29... Qd8 {[%clk 0:02:47.1]} 30. Nc6 {[%clk 0:01:18.2]} 30...
Qd5 {[%clk 0:02:38.5]} 31. Qxd5 {[%clk 0:01:08.6]} 31... exd5 {[%clk 0:02:38.4]}
32. Ba8 {[%clk 0:01:08.4]} 32... Nd3 {[%clk 0:02:35.1]} 33. b4 {[%clk
0:00:58.6]} 33... axb4 {[%clk 0:02:28.3]} 34. axb4 {[%clk 0:00:58.5]} 34... b5
{[%clk 0:02:26.4]} 35. Kf1 {[%clk 0:00:51.1]} 35... g5 {[%clk 0:02:23.9]} 36.
Ne5 {[%clk 0:00:45.6]} 36... Nxe5 {[%clk 0:02:20.9]} 37. dxe5 {[%clk 0:00:44.4]}
37... d4 {[%clk 0:02:18.9]} 38. Ke2 {[%clk 0:00:42.1]} 38... Rc4 {[%clk
0:02:17.3]} 39. Kd3 {[%clk 0:00:35.6]} 39... Kg6 {[%clk 0:02:16.4]} 40. Bd5
{[%clk 0:00:23.5]} 40... Rxb4 {[%clk 0:02:15.2]} 41. Bc6 {[%clk 0:00:23.4]}
41... Kf7 {[%clk 0:02:09.4]} 42. h4 {[%clk 0:00:19.3]} 42... gxh4 {[%clk
0:02:06.8]} 43. gxh4 {[%clk 0:00:19.2]} 43... Ke6 {[%clk 0:02:04]} 44. Bb7
{[%clk 0:00:18.3]} 44... Kd7 {[%clk 0:01:57.3]} 45. h5 {[%clk 0:00:12]} 45...
Rc4 {[%clk 0:01:55.2]} 46. Ba6 {[%clk 0:00:11]} 46... Rc5 {[%clk 0:01:53.4]} 47.
Kxd4 {[%clk 0:00:10.3]} 47... Kc6 {[%clk 0:01:52.6]} 48. Bb7+ {[%clk 0:00:08.5]}
48... Kb6 {[%clk 0:01:51.8]} 49. Bc8 {[%clk 0:00:08.4]} 49... Rxc8 {[%clk
0:01:50.6]} 50. e6 {[%clk 0:00:07.9]} 50... Kc6 {[%clk 0:01:48.9]} 51. Ke5
{[%clk 0:00:07.8]} 51... b4 {[%clk 0:01:47.4]} 52. Kxf5 {[%clk 0:00:07.2]} 52...
b3 {[%clk 0:01:46.8]} 53. Kf6 {[%clk 0:00:07]} 53... b2 {[%clk 0:01:46.2]} 54.
e7 {[%clk 0:00:06.7]} 54... b1=Q {[%clk 0:01:45.2]} 55. f5 {[%clk 0:00:06.3]}
55... Qb2+ {[%clk 0:01:43.9]} 56. Kf7 {[%clk 0:00:05.8]} 56... Qh8 {[%clk
0:01:43.4]} 57. f6 {[%clk 0:00:05.7]} 57... Qe8+ {[%clk 0:01:42.7]} 58. Ke6
{[%clk 0:00:05.1]} 58... Qg8+ {[%clk 0:01:41.8]} 59. f7 {[%clk 0:00:04]} 59...
Qh8 {[%clk 0:01:40.6]} 60. f8=Q {[%clk 0:00:00.9]} 60... Rxf8 {[%clk 0:01:39.8]}
61. exf8=Q {[%clk 0:00:00.8]} 61... Qxf8 {[%clk 0:01:38.8]} 62. Ke5 {[%clk
0:00:00.7]} 62... Qe8+ {[%clk 0:01:38.3]} 63. Kf5 {[%clk 0:00:00.6]} 63... Qxh5+
{[%clk 0:01:37.6]} 64. Kf6 {[%clk 0:00:00.5]} 64... Qg5+ {[%clk 0:01:37]} 0-1

[Event "Live Chess"]
[Site "Chess.com"]
[Date "2024.06.01"]
[Round "-"]
[White "bill77678"]
[Black "Kyrylo7770"]
[Result "1-0"]
[WhiteElo "1812"]
[BlackElo "1704"]
[TimeControl "300"]
[EndTime "10:06:01 PDT"]
[Termination "bill77678 won by checkmate"]

1. e4 {[%clk 0:04:58.2]} 1... c6 {[%clk 0:04:59.1]} 2. d4 {[%clk 0:04:56.9]}
2... d5 {[%clk 0:04:58.9]} 3. exd5 {[%clk 0:04:56.8]} 3... cxd5 {[%clk
0:04:58.8]} 4. Bd3 {[%clk 0:04:56.2]} 4... Nf6 {[%clk 0:04:58.7]} 5. c3 {[%clk
0:04:54.5]} 5... Bg4 {[%clk 0:04:58.2]} 6. Qb3 {[%clk 0:04:52.6]} 6... b6 {[%clk
0:04:57.3]} 7. Bf4 {[%clk 0:04:50.3]} 7... e6 {[%clk 0:04:56.5]} 8. Nd2 {[%clk
0:04:49.1]} 8... Bd6 {[%clk 0:04:55.8]} 9. Bxd6 {[%clk 0:04:47.5]} 9... Qxd6
{[%clk 0:04:55.2]} 10. Ngf3 {[%clk 0:04:47]} 10... O-O {[%clk 0:04:54.5]} 11.
O-O {[%clk 0:04:46]} 11... Nbd7 {[%clk 0:04:45.6]} 12. Rfe1 {[%clk 0:04:44.7]}
12... Bxf3 {[%clk 0:04:40]} 13. Nxf3 {[%clk 0:04:44.6]} 13... Nh5 {[%clk
0:04:38.2]} 14. Qc2 {[%clk 0:04:29.9]} 14... g6 {[%clk 0:04:35.9]} 15. g3 {[%clk
0:04:24.1]} 15... Ndf6 {[%clk 0:04:34.3]} 16. Ne5 {[%clk 0:04:19.7]} 16... Qd8
{[%clk 0:04:10.2]} 17. Qe2 {[%clk 0:04:15.1]} 17... Nd7 {[%clk 0:04:09.1]} 18.
Nc6 {[%clk 0:04:08.8]} 18... Qc7 {[%clk 0:04:08.1]} 19. Nb4 {[%clk 0:04:01.8]}
19... a5 {[%clk 0:04:05.1]} 20. Nc2 {[%clk 0:04:00.6]} 20... Nhf6 {[%clk
0:04:00.8]} 21. Qf3 {[%clk 0:03:47.7]} 21... h5 {[%clk 0:03:58.8]} 22. Re2
{[%clk 0:03:38.2]} 22... a4 {[%clk 0:03:56.1]} 23. Rae1 {[%clk 0:03:29.7]} 23...
Ng4 {[%clk 0:03:54.4]} 24. h3 {[%clk 0:03:20.3]} 24... Ngf6 {[%clk 0:03:48.3]}
25. a3 {[%clk 0:03:15.4]} 25... Kg7 {[%clk 0:03:38.9]} 26. Nb4 {[%clk
0:03:06.2]} 26... Rh8 {[%clk 0:03:35.8]} 27. Bb1 {[%clk 0:03:02.7]} 27... h4
{[%clk 0:03:34]} 28. g4 {[%clk 0:03:00.4]} 28... Nh5 {[%clk 0:03:33.3]} 29. Nd3
{[%clk 0:02:24.7]} 29... Raf8 {[%clk 0:03:28.8]} 30. gxh5 {[%clk 0:02:14.7]}
30... Rxh5 {[%clk 0:03:27.6]} 31. Ne5 {[%clk 0:02:12]} 31... Rg5+ {[%clk
0:03:19.1]} 32. Kh1 {[%clk 0:02:10.9]} 32... Rf5 {[%clk 0:03:13.2]} 33. Bxf5
{[%clk 0:02:00.6]} 33... exf5 {[%clk 0:03:10.5]} 34. Qxd5 {[%clk 0:01:52.5]}
34... Nxe5 {[%clk 0:03:08.7]} 35. Qxe5+ {[%clk 0:01:51.2]} 35... Qxe5 {[%clk
0:03:07.3]} 36. Rxe5 {[%clk 0:01:51.1]} 36... Kf6 {[%clk 0:03:03.7]} 37. Rb5
{[%clk 0:01:46.7]} 37... Rb8 {[%clk 0:03:02.9]} 38. Ree5 {[%clk 0:01:44.1]}
38... Rb7 {[%clk 0:03:00.2]} 39. Rb4 {[%clk 0:01:42.7]} 39... b5 {[%clk
0:02:58.3]} 40. Rexb5 {[%clk 0:01:38]} 40... Re7 {[%clk 0:02:57.5]} 41. Kg2
{[%clk 0:01:34.6]} 41... Re2 {[%clk 0:02:56.6]} 42. Rxa4 {[%clk 0:01:33.4]}
42... f4 {[%clk 0:02:55.1]} 43. Kf3 {[%clk 0:01:29.1]} 43... Re1 {[%clk
0:02:51]} 44. Ra6+ {[%clk 0:01:26.9]} 44... Kg7 {[%clk 0:02:49.5]} 45. Kxf4
{[%clk 0:01:24.2]} 45... f6 {[%clk 0:02:48.8]} 46. Rb7+ {[%clk 0:01:22.1]} 46...
Kh6 {[%clk 0:02:48.1]} 47. Rxf6 {[%clk 0:01:21]} 47... Kh5 {[%clk 0:02:47.2]}
48. Rb5+ {[%clk 0:01:16.4]} 48... Kh6 {[%clk 0:02:43.3]} 49. Rbb6 {[%clk
0:01:14.2]} 49... Kg7 {[%clk 0:02:39.1]} 50. Rxg6+ {[%clk 0:01:13]} 50... Kf7
{[%clk 0:02:38.2]} 51. Rbf6+ {[%clk 0:01:10.7]} 51... Ke7 {[%clk 0:02:37.3]} 52.
Re6+ {[%clk 0:01:10.2]} 52... Rxe6 {[%clk 0:02:36.1]} 53. Rxe6+ {[%clk
0:01:10.1]} 53... Kxe6 {[%clk 0:02:36]} 54. Kg4 {[%clk 0:01:09.3]} 54... Kd5
{[%clk 0:02:34.4]} 55. Kxh4 {[%clk 0:01:09.2]} 55... Kc4 {[%clk 0:02:34]} 56.
Kg5 {[%clk 0:01:09.1]} 56... Kb3 {[%clk 0:02:33.6]} 57. d5 {[%clk 0:01:08.5]}
57... Kxb2 {[%clk 0:02:33.2]} 58. d6 {[%clk 0:01:08.4]} 58... Kxa3 {[%clk
0:02:33.1]} 59. d7 {[%clk 0:01:08.3]} 59... Kb3 {[%clk 0:02:33]} 60. d8=Q {[%clk
0:01:08.2]} 60... Kxc3 {[%clk 0:02:32.6]} 61. Kf4 {[%clk 0:01:06.7]} 61... Kc4
{[%clk 0:02:32.1]} 62. Ke4 {[%clk 0:01:06.1]} 62... Kc5 {[%clk 0:02:31.4]} 63.
Qd5+ {[%clk 0:01:05.1]} 63... Kb6 {[%clk 0:02:30.1]} 64. Kd4 {[%clk 0:01:03.1]}
64... Kc7 {[%clk 0:02:30]} 65. Kc5 {[%clk 0:01:02.1]} 65... Kb8 {[%clk
0:02:28.7]} 66. Qf7 {[%clk 0:01:01]} 66... Kc8 {[%clk 0:02:25.4]} 67. Kc6 {[%clk
0:01:00.2]} 67... Kb8 {[%clk 0:02:24.7]} 68. Qb7# {[%clk 0:00:59.5]} 1-0

[Event "Live Chess"]
[Site "Chess.com"]
[Date "2024.06.01"]
[Round "-"]
[White "SvitlanaJ"]
[Black "Grace6363"]
[Result "1-0"]
[WhiteElo "593"]
[BlackElo "1121"]
[TimeControl "300"]
[EndTime "10:06:01 PDT"]
[Termination "SvitlanaJ won by checkmate"]

1. e4 {[%clk 0:04:57.4]} 1... c5 {[%clk 0:04:58.2]} 2. d4 {[%clk 0:04:55]} 2...
cxd4 {[%clk 0:04:57.1]} 3. Qxd4 {[%clk 0:04:53.5]} 3... Nc6 {[%clk 0:04:56.5]}
4. Qe3 {[%clk 0:04:52.1]} 4... e6 {[%clk 0:04:54.3]} 5. Bb5 {[%clk 0:04:50]}
5... a6 {[%clk 0:04:51.5]} 6. Bxc6 {[%clk 0:04:46.7]} 6... bxc6 {[%clk
0:04:50.8]} 7. e5 {[%clk 0:04:36.8]} 7... f6 {[%clk 0:04:43.5]} 8. Nf3 {[%clk
0:04:33.2]} 8... Be7 {[%clk 0:04:40.2]} 9. O-O {[%clk 0:04:26.1]} 9... Nh6
{[%clk 0:04:38]} 10. h3 {[%clk 0:04:22.8]} 10... Nf5 {[%clk 0:04:36.9]} 11. Qc3
{[%clk 0:04:00.3]} 11... Qb6 {[%clk 0:04:32.5]} 12. exf6 {[%clk 0:03:40.2]}
12... Bxf6 {[%clk 0:04:28.8]} 13. Qe1 {[%clk 0:03:23]} 13... Ng3 {[%clk
0:04:22.9]} 14. Bg5 {[%clk 0:02:30.5]} 14... Nxf1 {[%clk 0:04:20.1]} 15. Qxf1
{[%clk 0:02:28.4]} 15... Bxb2 {[%clk 0:04:14.9]} 16. Qe2 {[%clk 0:02:14.7]}
16... Bxa1 {[%clk 0:04:11.5]} 17. Ne5 {[%clk 0:02:12.1]} 17... Qxb1+ {[%clk
0:04:04.1]} 18. Kh2 {[%clk 0:02:10]} 18... Bxe5+ {[%clk 0:04:01.6]} 19. Qxe5
{[%clk 0:02:07.2]} 19... Qb5 {[%clk 0:03:16.7]} 20. Qxg7 {[%clk 0:02:04.9]}
20... Qf5 {[%clk 0:02:42.4]} 21. Qe7# {[%clk 0:02:01.8]} 1-0

[Event "Live Chess"]
[Site "Chess.com"]
[Date "2024.06.01"]
[Round "-"]
[White "Keithdfg"]
[Black "FlyingChessKestrel13"]
[Result "1/2-1/2"]
[WhiteElo "1768"]
[BlackElo "2095"]
[TimeControl "300"]
[EndTime "10:06:04 PDT"]
[Termination "Game drawn - insufficient material"]

1. Nf3 {[%clk 0:04:56.9]} 1... e6 {[%clk 0:04:56.9]} 2. g3 {[%clk 0:04:56.1]}
2... d5 {[%clk 0:04:56.2]} 3. Bg2 {[%clk 0:04:55.9]} 3... c6 {[%clk 0:04:55.6]}
4. O-O {[%clk 0:04:55.7]} 4... Nf6 {[%clk 0:04:55.1]} 5. d4 {[%clk 0:04:53.4]}
5... Be7 {[%clk 0:04:54.5]} 6. Nbd2 {[%clk 0:04:52.9]} 6... O-O {[%clk
0:04:53.9]} 7. c4 {[%clk 0:04:51.5]} 7... Nbd7 {[%clk 0:04:53.2]} 8. b3 {[%clk
0:04:50.8]} 8... a5 {[%clk 0:04:52]} 9. Bb2 {[%clk 0:04:50.2]} 9... a4 {[%clk
0:04:51.3]} 10. Qc2 {[%clk 0:04:48.8]} 10... axb3 {[%clk 0:04:50.2]} 11. axb3
{[%clk 0:04:47.7]} 11... Rxa1 {[%clk 0:04:49]} 12. Rxa1 {[%clk 0:04:47.3]} 12...
b6 {[%clk 0:04:43.8]} 13. e4 {[%clk 0:04:45.2]} 13... dxe4 {[%clk 0:04:41.2]}
14. Nxe4 {[%clk 0:04:44.4]} 14... Bb7 {[%clk 0:04:40.2]} 15. Ne5 {[%clk
0:04:41.7]} 15... Nxe5 {[%clk 0:04:37.4]} 16. dxe5 {[%clk 0:04:40.2]} 16... Nxe4
{[%clk 0:04:36.3]} 17. Bxe4 {[%clk 0:04:39.2]} 17... g6 {[%clk 0:04:33.4]} 18.
Rd1 {[%clk 0:04:33.5]} 18... Qc7 {[%clk 0:04:31.3]} 19. f4 {[%clk 0:04:32.1]}
19... Rd8 {[%clk 0:04:29.9]} 20. Rxd8+ {[%clk 0:04:23.3]} 20... Qxd8 {[%clk
0:04:27]} 21. Qd3 {[%clk 0:04:22.7]} 21... Qxd3 {[%clk 0:04:25.6]} 22. Bxd3
{[%clk 0:04:21.2]} 22... c5 {[%clk 0:04:25]} 23. Bc3 {[%clk 0:04:17.3]} 23...
Bf3 {[%clk 0:04:22.6]} 24. Bc2 {[%clk 0:04:13.5]} 24... Kf8 {[%clk 0:04:18.7]}
25. Kf2 {[%clk 0:04:10.3]} 25... Bc6 {[%clk 0:04:17.7]} 26. Bd2 {[%clk
0:04:07.8]} 26... Ke8 {[%clk 0:04:16.8]} 27. Be3 {[%clk 0:04:06.4]} 27... Kd7
{[%clk 0:04:15.8]} 28. Bd1 {[%clk 0:04:04.1]} 28... b5 {[%clk 0:04:14.9]} 29.
Be2 {[%clk 0:04:01.4]} 29... bxc4 {[%clk 0:04:10.4]} 30. bxc4 {[%clk 0:03:55]}
30... Ba4 {[%clk 0:04:09]} 31. h4 {[%clk 0:03:52.6]} 31... Kc7 {[%clk
0:04:05.4]} 32. h5 {[%clk 0:03:47.5]} 32... Bb3 {[%clk 0:04:00.5]} 33. g4 {[%clk
0:03:45.5]} 33... Kb6 {[%clk 0:03:58]} 34. Kf3 {[%clk 0:03:40.8]} 34... Bh4
{[%clk 0:03:51.6]} 35. Bd2 {[%clk 0:03:36.4]} 35... Be7 {[%clk 0:03:46.9]} 36.
Bd3 {[%clk 0:03:34.4]} 36... Bd1+ {[%clk 0:03:42.5]} 37. Kg3 {[%clk 0:03:32.3]}
37... gxh5 {[%clk 0:03:41]} 38. g5 {[%clk 0:03:29.7]} 38... Bb3 {[%clk
0:02:39.5]} 39. Kh4 {[%clk 0:03:26.7]} 39... Bf8 {[%clk 0:02:31.4]} 40. Kxh5
{[%clk 0:03:24.6]} 40... Bg7 {[%clk 0:02:29.5]} 41. Bc3 {[%clk 0:03:18.4]} 41...
Kc7 {[%clk 0:02:23.7]} 42. f5 {[%clk 0:03:09.8]} 42... exf5 {[%clk 0:02:21.2]}
43. Bxf5 {[%clk 0:03:01.5]} 43... Bxc4 {[%clk 0:02:19.4]} 44. Bxh7 {[%clk
0:03:00]} 44... Be6 {[%clk 0:02:17.5]} 45. Be4 {[%clk 0:02:55.5]} 45... c4
{[%clk 0:02:15.7]} 46. g6 {[%clk 0:02:52.4]} 46... Kb6 {[%clk 0:02:10]} 47. gxf7
{[%clk 0:02:48.2]} 47... Bxf7+ {[%clk 0:02:09]} 48. Bg6 {[%clk 0:02:36.7]} 48...
Bxg6+ {[%clk 0:02:02.2]} 49. Kxg6 {[%clk 0:02:35.8]} 49... Bxe5 {[%clk
0:01:54.4]} 50. Bxe5 {[%clk 0:02:33.8]} 50... c3 {[%clk 0:01:53.3]} 51. Bxc3
{[%clk 0:02:32.4]} 1/2-1/2